bitfinex/quotes_ETHUSD_20220123
["timestamp","ask_amount","ask_price","bid_price","bid_amount"]
[1642981896124,0.1577,2536.4,2535.2,0.4575]
[1642981896319,3.40321509,2536.5,2535.2,0.1575]
[1642981896517,3.40321509,2536.5,2535.3,3.35424451]
[1642981896718,3.56091509,2536.5,2535.3,3.35424451]
[1642981896915,0.1577,2536.5,2535.3,3.35424451]
[1642981897316,1.31333933,2536.1,2535.3,3.35424451]
[1642981897719,3.39785342,2536.0,2535.2,0.1575]
[1642981897922,0.34415208,2535.9,2535.2,0.1575]
[1642981898125,0.34415208,2535.9,2535.0,0.023979]
[1642981898323,1.54710835,2535.4,2535.0,0.023979]
[1642981898729,1.51019179,2535.8,2535.5,2.03142208]
[1642981901374,6.98645208,2535.6,2535.5,2.03142208]
[1642981901579,6.35,2535.5,2535.0,0.023979]
[1642981901772,3.91585083,2535.4,2535.0,0.023979]
[1642981901970,0.1577,2535.3,2535.0,0.023979]
[1642981902173,4.10230291,2535.4,2535.0,0.023979]
[1642981902371,1.49992255,2535.3,2535.0,0.023979]
[1642981902576,0.34415208,2535.6,2535.0,0.023979]
[1642981902776,7.33730926,2536.2,2535.1,0.07103953]
[1642981903019,3.7863,2536.2,2535.1,0.07103953]
[1642981903410,0.01233456,2535.9,2535.0,0.023979]
[1642981903709,0.18645208,2535.8,2535.0,0.023979]
[1642981903910,0.34415208,2535.8,2535.0,0.023979]
[1642981904116,0.1577,2536.1,2535.0,0.03675449]
[1642981904318,6.825,2536.3,2535.1,7.5877]
[1642981904319,3.1946,2536.3,2535.1,7.5877]
[1642981904514,10.5811524,2536.8,2535.2,0.568]
[1642981904715,10.5811524,2536.8,2535.3,0.1577]
[1642981904914,1.26900068,2536.5,2535.4,0.568]
[1642981905312,1.26900068,2536.5,2535.4,0.07103953]
[1642981905515,3.4767,2536.7,2535.5,0.07103953]
[1642981905719,1.34585208,2537.2,2535.6,0.01213729]
[1642981905720,0.1577,2537.2,2535.6,0.01213729]
[1642981905920,8.1262524,2537.8,2536.2,0.01224332]
[1642981906117,4.8809,2537.8,2536.3,1e-05]
[1642981906316,1.1527,2537.8,2536.3,0.07104953]
[1642981906623,1.32096019,2537.4,2536.4,0.07103953]
[1642981907262,1.1527,2537.8,2536.4,0.07103953]
[1642981907471,0.1575,2537.9,2536.5,0.47401]
[1642981907767,0.01227227,2538.3,2536.7,7.43]
[1642981907966,0.01227227,2538.3,2536.8,0.47401]
[1642981908168,0.01227227,2538.3,2536.9,0.1575]
[1642981908368,0.01227227,2538.3,2537.0,0.474]
[1642981908369,1.47660245,2538.3,2537.0,0.474]
[1642981908567,1.47660245,2538.3,2537.2,7.73]
[1642981908969,1.47660245,2538.3,2537.3,1.07121618]
[1642981909171,1.47660245,2538.3,2537.3,1.07122618]
[1642981910613,10.8784,2538.6,2537.3,1.07122618]
[1642981910821,2.4721,2538.6,2537.4,0.49157101]
[1642981911009,2.4721,2538.6,2537.4,0.84521618]
[1642981911213,2.4721,2538.6,2537.5,0.07121618]
[1642981911418,0.01255478,2538.8,2537.5,0.54521618]
[1642981911619,9.1988,2539.6,2537.6,23.17001]
[1642981911620,1.35383161,2539.4,2537.6,23.17001]
[1642981911827,11.56091135,2539.6,2537.6,23.27317373]
[1642981911828,2.51961135,2539.6,2537.6,23.27317373]
[1642981912021,0.01231135,2539.6,2537.8,0.01305387]
[1642981912222,3.2451524,2540.1,2538.1,0.01203653]
[1642981912425,3.2451524,2540.1,2538.3,0.98507]
[1642981912426,3.0876524,2540.1,2538.3,0.98507]
[1642981912618,0.0121345,2540.2,2538.4,0.474]
[1642981912820,1.2907227,2540.2,2538.5,1e-05]
[1642981913015,1.2907227,2540.2,2538.6,0.474]
[1642981913218,1.2907227,2540.2,2538.7,23.3275]
[1642981913416,0.3456,2540.1,2538.8,0.474]
[1642981913620,0.5031,2540.1,2538.8,1.47401]
[1642981913818,0.1575,2540.1,2538.9,0.07121618]
[1642981914025,3.2451524,2540.6,2539.0,0.63151]
[1642981914267,1.154,2540.7,2539.0,0.63151]
[1642981914268,1.154,2540.7,2539.1,23.17]
[1642981914475,1.154,2540.7,2539.2,0.63141]
[1642981914670,1.154,2540.7,2539.2,1.70262618]
[1642981914870,1.154,2540.7,2539.2,1.30262618]
[1642981915072,1.53070662,2540.6,2539.2,2.87772618]
[1642981915470,1.53070662,2540.6,2539.3,1.0]
[1642981915673,1.53070662,2540.6,2539.4,0.474]
[1642981915872,1.53070662,2540.6,2539.4,0.774]
[1642981916072,1.53070662,2540.6,2539.4,0.77401]
[1642981916278,3.59359641,2540.5,2539.4,0.474]
[1642981916479,0.16953579,2540.4,2538.8,0.6314]
[1642981916671,0.16953579,2540.4,2538.8,0.47401]
[1642981917272,0.16953579,2540.4,2538.9,0.1575]
[1642981917474,4.15714947,2540.4,2538.8,0.47401]
[1642981917673,0.18645208,2540.3,2538.8,0.47401]
[1642981917873,0.1575,2540.2,2538.8,0.47401]
[1642981918118,0.1575,2540.3,2538.8,0.48662991]
[1642981918311,1.59455202,2541.0,2538.8,0.48662991]
[1642981918312,1.38724074,2540.6,2538.9,4.99109856]
[1642981918518,1.38724074,2540.6,2539.0,0.474]
[1642981918715,1.38724074,2540.6,2539.1,0.15741]
[1642981918919,1.38724074,2540.6,2539.2,0.474]
[1642981919118,0.1574,2540.5,2539.3,1e-05]
[1642981919516,0.1574,2540.5,2539.3,0.07122617]
[1642981919720,1.47847963,2540.2,2539.3,0.07122617]
[1642981919917,0.3456,2540.8,2539.4,0.1574]
[1642981920119,0.18645208,2540.7,2539.4,0.1574]
[1642981920319,0.1574,2540.9,2539.5,0.07121617]
[1642981920717,0.1574,2540.9,2539.5,0.07122617]
[1642981920920,1.49890047,2540.5,2539.5,0.07122617]
[1642981921319,1.84450047,2540.5,2539.5,0.07122617]
[1642981921965,1.49890047,2540.5,2539.5,0.07122617]
[1642981922166,1.18431598,2540.1,2539.5,0.07122617]
[1642981922971,1.18431598,2540.1,2539.5,0.07121617]
[1642981923275,1.18431598,2540.1,2539.1,0.0712151]
[1642981923472,0.1574,2540.0,2538.8,0.0712151]
[1642981923671,0.01251478,2539.9,2538.8,0.0712151]
[1642981923874,0.1575,2539.8,2538.4,0.58960424]
[1642981924075,0.1575,2539.8,2538.3,1e-05]
[1642981924076,0.20191712,2539.8,2538.3,1e-05]
[1642981924272,1.46080274,2539.5,2538.3,0.0712251]
[1642981924472,1.46080274,2539.5,2538.5,0.0712151]
[1642981925071,1.46080274,2539.5,2537.7,6.50184404]
[1642981925273,1.46080274,2539.5,2538.0,0.6]
[1642981925512,1.46080274,2539.5,2538.4,0.07113392]
[1642981925917,0.1575,2539.8,2538.4,0.07113392]
[1642981926115,0.1575,2540.4,2538.8,0.01295725]
[1642981926315,0.28906545,2541.0,2538.9,0.474]
[1642981926316,0.1575,2540.9,2538.9,0.474]
[1642981926513,0.1575,2540.9,2538.9,0.54513392]
[1642981926514,0.34395208,2540.9,2538.9,0.54513392]
[1642981926715,0.34395208,2540.9,2539.0,0.07113392]
[1642981926911,0.34395208,2540.9,2539.1,0.474]
[1642981927115,0.1575,2540.9,2539.1,0.474]
[1642981927417,0.1575,2540.9,2539.2,0.07113392]
[1642981927612,0.1575,2540.9,2539.2,0.54513392]
[1642981928013,1.15528479,2540.7,2539.3,0.07113392]
[1642981928217,0.1574,2540.6,2539.3,0.07113392]
[1642981928517,0.18645208,2540.5,2539.3,0.07113392]
[1642981928719,0.01229173,2540.4,2539.3,0.07113392]
[1642981928916,0.1574,2540.3,2539.3,0.07113392]
[1642981929570,1.10413082,2539.8,2539.3,0.07113392]
[1642981929769,1.10413082,2539.8,2538.6,1.0]
[1642981929770,1.10413082,2539.8,2538.7,0.1575]
[1642981929975,1.26163082,2539.8,2538.6,0.07098212]
[1642981930171,1.26163082,2539.8,2538.2,0.64375025]
[1642981930370,1.26163082,2539.8,2538.2,0.71473237]
[1642981930570,1.26163082,2539.8,2538.2,1.30557521]
[1642981931172,1.26163082,2539.8,2538.3,3.91188446]
[1642981931372,1.10413082,2539.8,2538.4,24.644]
[1642981931670,0.1575,2540.3,2538.6,24.1550087]
[1642981931869,0.01229173,2540.4,2538.7,3.94727142]
[1642981932069,0.01229173,2540.4,2538.7,5.31825354]
[1642981932271,0.01229173,2540.4,2538.8,0.07098212]
[1642981932477,0.01229173,2540.4,2538.9,0.1575]
[1642981932673,0.1575,2540.3,2538.5,0.1575]
[1642981932870,0.01283458,2539.8,2538.4,0.07098212]
[1642981933110,0.1575,2539.7,2538.4,0.07098212]
[1642981933511,1.40656097,2539.3,2538.4,0.07098212]
[1642981933711,1.40656097,2539.3,2538.1,0.07098212]
[1642981933911,1.40656097,2539.3,2538.2,0.90309309]
[1642981934110,1.40656097,2539.3,2538.2,1.20309309]
[1642981935022,0.1575,2539.7,2538.2,1.20309309]
[1642981935223,0.1575,2539.7,2538.2,0.59084284]
[1642981935224,0.18645208,2539.6,2538.2,0.59084284]
[1642981935417,0.1575,2539.5,2538.1,0.07098212]
[1642981935617,5.25,2539.4,2537.7,11.4733359]
[1642981935818,0.1575,2539.3,2537.7,7.5875]
[1642981936018,0.01283458,2539.8,2537.8,6.26658767]
[1642981936019,0.1575,2539.4,2537.8,6.26658767]
[1642981936220,1.30683304,2539.7,2538.1,0.01239307]
[1642981936418,1.30683304,2539.7,2538.2,0.474]
[1642981936867,0.01283458,2539.8,2538.2,4.86040541]
[1642981937065,0.01283458,2539.8,2538.3,1.07098212]
[1642981937266,0.01283458,2539.8,2538.3,1.54498212]
[1642981937466,0.01283458,2539.8,2538.4,0.07119812]
[1642981937670,0.1575,2539.7,2538.4,0.07119812]
[1642981938666,0.1575,2539.7,2538.4,4.0126254]
[1642981938869,11.3136,2540.2,2538.7,0.01748796]
[1642981939073,0.1575,2540.3,2538.9,23.17]
[1642981939269,0.0123729,2540.5,2539.0,5.43100791]
[1642981939472,0.0123729,2540.5,2539.1,0.474]
[1642981939670,0.0123729,2540.5,2539.1,1.54519812]
[1642981939868,0.0123729,2540.5,2539.2,0.07119812]
[1642981940067,0.0123729,2540.5,2539.3,0.474]
[1642981940068,0.18645208,2540.4,2539.3,0.474]
[1642981940277,0.1574,2540.3,2539.3,0.474]
[1642981940518,1.34184942,2539.6,2539.3,0.3]
[1642981940716,0.1574,2540.3,2539.3,0.3]
[1642981940917,0.1574,2540.3,2538.6,0.6314]
[1642981941115,0.1574,2540.3,2538.6,0.9314]
[1642981941318,0.1574,2540.3,2538.8,0.07119812]
[1642981941517,0.1574,2540.3,2538.6,1.2314]
[1642981942017,1.13582456,2539.3,2538.6,1.2314]
[1642981942418,4.0172,2540.3,2538.6,1.2314]
[1642981942617,4.0172,2540.3,2538.6,1.30259812]
[1642981942618,3.93765883,2540.2,2538.6,1.30259812]
[1642981942829,0.1575,2540.1,2538.6,1.30259812]
[1642981943525,0.01239385,2539.9,2538.6,1.30259812]
[1642981943823,0.1575,2539.8,2538.6,0.67119812]
[1642981944024,0.1575,2539.8,2538.6,0.37119812]
[1642981944279,0.1575,2539.8,2538.6,0.07119812]
[1642981944873,1.54702484,2539.2,2538.6,0.07119812]
[1642981946379,1.54702484,2539.2,2538.3,0.1575]
[1642981946380,0.10354284,2539.1,2538.3,0.1575]
[1642981946576,0.1575,2539.1,2538.3,0.1575]
[1642981947480,0.23249128,2539.0,2537.4,0.01253349]
[1642981947677,0.23249128,2539.0,2536.9,0.474]
[1642981947678,0.07215296,2538.8,2537.0,0.57885157]
[1642981947879,3.23585306,2539.0,2537.0,0.00265585]
[1642981947880,0.06759846,2538.6,2537.0,0.00265585]
[1642981948116,0.06759846,2538.6,2536.9,0.474]
[1642981948312,1.30246098,2538.3,2536.9,1.06838478]
[1642981948513,1.30246098,2538.3,2537.0,0.1575]
[1642981949113,1.30246098,2538.3,2537.1,3.35228514]
[1642981949318,1.30246098,2538.3,2537.2,3.35230812]
[1642981949518,1.30246098,2538.3,2536.9,25.83838478]
[1642981949519,3.47007135,2538.2,2537.3,9.1875]
[1642981949719,0.1575,2538.2,2537.3,1.6]
[1642981949919,3.45963289,2538.2,2537.3,0.6]
[1642981950120,3.45963289,2538.2,2537.3,0.3]
[1642981950317,3.45963289,2538.2,2536.9,0.1575]
[1642981950318,3.30213289,2538.2,2536.9,0.1575]
[1642981950523,1.37220517,2537.5,2536.8,0.01238331]
[1642981950718,4.9134,2538.1,2536.8,0.01238331]
[1642981950918,0.1575,2538.0,2536.8,0.01238331]
[1642981951119,0.1575,2538.0,2536.9,3.35285673]
[1642981951517,0.1575,2538.0,2536.9,3.95285673]
[1642981951771,1.45793428,2537.5,2537.0,3.35285673]
[1642981951969,1.45793428,2537.5,2536.9,0.6]
[1642981952370,1.45793428,2537.5,2536.9,0.3]
[1642981952766,1.45793428,2537.5,2536.1,1.0]
[1642981952967,1.45793428,2537.5,2536.2,0.1575]
[1642981953177,1.45793428,2537.5,2536.3,3.35327732]
[1642981953366,1.45793428,2537.5,2536.4,7.43]
[1642981953567,1.45793428,2537.5,2536.5,4.35327732]
[1642981953767,1.45793428,2537.5,2536.5,1.0]
[1642981953967,1.45793428,2537.5,2536.5,1.3]
[1642981956024,3.32277611,2537.4,2536.5,0.3]
[1642981956224,0.1575,2537.3,2536.4,8.03]
[1642981956931,0.1575,2537.3,2536.2,0.1575]
[1642981956932,1.57535208,2537.3,2536.2,0.1575]
[1642981957129,1.2558883,2536.3,2536.2,0.1575]
[1642981958329,1.2901,2536.8,2536.2,0.1575]
[1642981958525,1.1324,2536.8,2536.2,0.1575]
[1642981958724,0.1575,2536.7,2536.2,0.1575]
[1642981958924,1.1324,2536.8,2536.2,0.1575]
[1642981959130,1.1324,2536.8,2535.4,1.1575]
[1642981959383,1.13141821,2536.8,2535.8,7.43]
[1642981959573,1.13141821,2536.8,2535.9,1.0]
[1642981959970,1.13141821,2536.8,2535.9,1.07119812]
[1642981960572,2.40246021,2536.8,2536.0,0.07119812]
[1642981961277,1.13141821,2536.8,2536.0,0.07119812]
[1642981962274,2.58059524,2536.8,2536.0,0.07119812]
[1642981963716,1.13141821,2536.8,2536.0,0.07119812]
[1642981964121,1.2217,2536.9,2536.0,0.07119812]
[1642981964321,5.1601,2537.7,2536.2,0.04622693]
[1642981964524,5.0024,2537.7,2536.8,0.04622693]
[1642981964720,5.0024,2537.7,2536.7,0.4863673]
[1642981964721,6.29851288,2537.7,2536.7,0.4863673]
[1642981964920,1.29611288,2537.7,2536.7,0.4863673]
[1642981965119,1.29611288,2537.7,2536.9,0.07119812]
[1642981967179,0.19931598,2537.6,2536.4,0.07119812]
[1642981967374,0.19931598,2537.6,2536.3,0.1575]
[1642981967375,6.0056357,2537.6,2536.3,0.1575]
[1642981967572,1.0,2537.5,2536.3,0.1575]
[1642981967776,4.52128489,2537.4,2536.3,0.1575]
[1642981968176,4.52128489,2537.4,2536.2,7.43]
[1642981968177,0.1575,2537.4,2536.2,7.43]
[1642981968377,3.7714639,2537.6,2536.4,0.07119812]
[1642981968378,3.7586,2537.6,2536.4,0.07119812]
[1642981968576,3.7586,2537.6,2536.4,0.54519812]
[1642981968779,3.7586,2537.6,2536.4,0.84519812]
[1642981968975,2.3086,2537.7,2536.7,0.01209896]
[1642981969276,5.64711938,2537.7,2536.7,0.08329708]
[1642981969476,0.1575,2537.6,2536.7,0.08329708]
[1642981969675,0.1575,2537.6,2536.7,0.01209896]
[1642981970077,0.1575,2537.6,2536.7,1.01209896]
[1642981970274,1.124245,2537.3,2536.7,1.01209896]
[1642981970924,1.124245,2537.3,2536.6,7.43]
[1642981971221,1.124245,2537.3,2536.2,0.22869812]
[1642981971424,3.33514953,2537.2,2536.2,0.1575]
[1642981971620,1.124245,2537.3,2536.2,0.1575]
[1642981971820,0.1575,2537.3,2536.2,0.1575]
[1642981972021,0.1575,2537.3,2536.3,0.07119812]
[1642981972227,2.3086,2537.7,2536.3,0.07119812]
[1642981972228,0.1575,2537.6,2536.3,0.07119812]
[1642981972422,2.3086,2537.7,2536.5,0.01266648]
[1642981972625,2.3086,2537.7,2536.6,7.43]
[1642981972823,2.3086,2537.7,2536.6,8.03]
[1642981973022,2.3086,2537.7,2536.7,1.0]
[1642981973428,2.3086,2537.7,2536.7,1.0711917]
[1642981973624,2.3086,2537.7,2536.8,0.0711917]
[1642981974473,0.5124,2538.2,2537.2,0.01279162]
[1642981974678,0.3549,2538.2,2537.3,0.474]
[1642981974873,0.3549,2538.2,2537.5,25.543]
[1642981975074,0.2549,2538.2,2537.6,0.6315]
[1642981975269,13.3144,2539.3,2537.6,1.6315]
[1642981975472,13.3144,2539.3,2537.6,4.75209268]
[1642981975676,5.6481,2539.3,2538.0,23.17]
[1642981975873,5.6481,2539.3,2538.1,0.6315]
[1642981976070,5.6481,2539.3,2538.2,23.17]
[1642981976071,2.3137,2539.3,2538.2,23.17]
[1642981976272,2.3137,2539.3,2538.2,23.7151917]
[1642981976471,1.40352088,2539.4,2538.3,1.0]
[1642981976677,1.40352088,2539.4,2538.3,1.3711917]
[1642981976871,1.40352088,2539.4,2538.4,0.0711917]
[1642981977071,1.40352088,2539.4,2538.5,0.474]
[1642981977272,1.40352088,2539.4,2538.5,0.774]
[1642981977472,1.40352088,2539.4,2538.5,1.074]
[1642981978122,9.7773,2539.7,2538.6,0.0711917]
[1642981978328,0.1575,2539.9,2538.6,0.0711917]
[1642981978526,0.1575,2539.9,2538.6,1.0]
[1642981979126,1.10909606,2539.5,2538.5,1.1451917]
[1642981979329,1.10909606,2539.5,2538.5,1.074]
[1642981980427,1.10909606,2539.5,2538.5,1.07303195]
[1642981980935,1.10909606,2539.5,2538.0,0.1575]
[1642981980936,0.16978479,2539.4,2538.0,0.1575]
[1642981981132,0.1969,2539.3,2537.7,0.0711917]
[1642981981332,0.1575,2539.2,2537.5,0.58292]
[1642981981529,0.1969,2539.1,2537.5,0.474]
[1642981981775,1.16048676,2538.3,2537.5,1.07759294]
[1642981982373,0.1575,2539.0,2537.5,1.07759294]
[1642981982575,0.1575,2539.0,2537.5,1.18651294]
[1642981982974,0.1575,2539.0,2537.5,1.78651294]
[1642981983378,1.20322652,2538.7,2537.5,1.78651294]
[1642981983579,1.20322652,2538.7,2537.6,3.57326296]
[1642981983778,1.20322652,2538.7,2537.7,0.26642]
[1642981983976,1.20322652,2538.7,2537.7,1.3]
[1642981984486,0.1575,2539.3,2537.8,29.92571501]
[1642981984681,0.17040092,2539.8,2537.9,4.6247325]
[1642981984884,0.13819997,2540.0,2537.9,4.6247325]
[1642981984885,0.29569997,2540.0,2538.5,0.01225817]
[1642981985183,0.13819997,2540.0,2538.6,0.74042]
[1642981985379,1.49891002,2539.7,2538.6,1.4116117]
[1642981985627,0.1575,2539.6,2538.2,1.9701754]
[1642981985827,0.01232751,2539.4,2537.8,0.1575]
[1642981986029,0.1575,2539.3,2537.9,0.10892]
[1642981986732,0.1575,2539.3,2537.9,0.58292]
[1642981986931,10.6692,2539.6,2537.9,1.568272]
[1642981986932,0.1575,2539.5,2537.9,1.568272]
[1642981987133,0.1575,2539.5,2537.9,2.868272]
[1642981987531,1.38263584,2538.8,2537.9,2.868272]
[1642981987734,1.38263584,2538.8,2537.9,0.474]
[1642981987933,1.38263584,2538.8,2537.7,0.1575]
[1642981988340,0.01210547,2538.4,2537.7,0.1575]
[1642981989372,0.01210547,2538.4,2537.3,0.59555563]
[1642981989884,0.01210547,2538.4,2536.7,0.26642]
[1642981989885,0.1575,2538.3,2536.7,0.26642]
[1642981990075,0.1575,2538.3,2536.5,0.60466672]
[1642981990076,0.1969,2538.2,2536.5,0.60466672]
[1642981990274,1.25068373,2537.2,2536.5,0.60466672]
[1642981990476,1.1294,2537.2,2536.5,0.60466672]
[1642981991072,1.1294,2537.2,2536.5,0.67585842]
[1642981991473,1.1294,2537.2,2536.5,0.97585842]
[1642981991674,1.53181714,2537.6,2536.5,1.97585842]
[1642981991875,1.53181714,2537.6,2536.5,2.27585842]
[1642981992078,1.53181714,2537.6,2536.5,1.27585842]
[1642981992274,1.53181714,2537.6,2536.5,2.27585842]
[1642981992877,0.1575,2537.5,2536.5,2.27585842]
[1642981993535,0.1575,2537.5,2536.6,3.35293379]
[1642981993736,1.53181714,2537.6,2536.6,3.35293379]
[1642981993938,1.53181714,2537.6,2536.6,0.0711917]
[1642981994146,1.53181714,2537.6,2536.5,0.6]
[1642981994342,1.23993269,2536.9,2536.4,8.03]
[1642981994543,0.1969,2537.8,2536.4,8.03]
[1642981994544,0.3544,2537.8,2536.4,8.03]
[1642981994842,0.3544,2537.8,2536.4,8.1011917]
[1642981995045,0.1575,2537.8,2536.5,4.97120832]
[1642981995240,0.1575,2537.8,2536.5,1.3]
[1642981995440,0.1575,2537.8,2536.5,1.3711917]
[1642981995639,0.1575,2537.9,2536.5,1.3711917]
[1642981995841,1.53350503,2537.5,2536.5,1.3711917]
[1642981996042,1.53350503,2537.5,2536.5,0.3711917]
[1642981996242,1.53350503,2537.5,2536.6,0.3]
[1642981996440,1.53350503,2537.5,2536.5,1.3711917]
[1642981997467,0.1575,2537.7,2536.6,0.10892]
[1642981997675,3.7536,2537.9,2536.6,0.10892]
[1642981997873,3.7536,2537.9,2536.7,0.0711917]
[1642981998278,0.1969,2537.8,2536.4,7.43]
[1642981998479,0.36688298,2537.8,2536.4,7.43]
[1642981998679,0.05928721,2537.7,2536.4,7.43]
[1642981998880,0.04539485,2537.5,2536.4,7.43]
[1642981999078,0.05477019,2537.3,2536.4,7.43]
[1642981999280,0.05477019,2537.3,2535.8,0.00265585]
[1642981999281,0.01263117,2537.1,2535.8,7.43265585]
[1642981999477,0.07381293,2536.9,2535.8,7.43]
[1642981999678,0.0637547,2536.7,2535.8,7.43]
[1642981999878,0.1577,2536.6,2535.8,7.43]
[1642982000076,0.04822119,2536.8,2535.8,7.43]
[1642982000282,1.3019961,2536.6,2535.8,7.43]
[1642982000518,0.1577,2536.5,2535.8,7.43]
[1642982000717,0.04536862,2536.4,2535.4,0.01254314]
[1642982000915,0.1577,2536.3,2535.4,0.01254314]
[1642982001113,0.9583,2536.4,2535.1,7.43]
[1642982001317,1.1771315,2535.4,2535.2,3.35453999]
[1642982001515,0.9583,2536.4,2535.7,2.354263]
[1642982001516,7.8814,2536.3,2535.7,2.354263]
[1642982001717,1.16503285,2536.2,2535.7,2.354263]
[1642982003722,0.3546,2536.1,2535.7,2.354263]
[1642982005281,1.7544,2536.1,2535.7,2.354263]
[1642982005484,0.05779959,2535.9,2535.1,7.43]
[1642982005679,0.1577,2535.8,2535.1,7.43]
[1642982005879,0.0469705,2535.7,2535.1,7.43]
[1642982006279,0.2438705,2535.7,2535.1,7.43]
[1642982006878,1.19193351,2535.6,2535.1,7.43]
[1642982007278,1.19193351,2535.6,2535.0,0.023979]
[1642982007477,0.05578427,2535.5,2535.0,0.023979]
[1642982007678,1.41781566,2535.1,2535.0,0.023979]
[1642982009530,1.61471566,2535.1,2535.0,0.023979]
[1642982009931,4.61471566,2535.1,2535.0,0.023979]
[1642982010130,1.61471566,2535.1,2535.0,0.023979]
[1642982010331,0.1969,2535.3,2535.0,0.023979]
[1642982010638,0.13819997,2535.6,2535.0,0.023979]
[1642982011431,1.16176647,2535.5,2535.0,0.023979]
[1642982011630,0.1969,2535.4,2535.0,0.023979]
[1642982012691,42.23311322,2538.0,2535.3,5.0]
[1642982012909,2.72096685,2540.4,2537.8,0.04622693]
[1642982013111,3.5293,2541.4,2538.0,0.04622693]
[1642982013112,0.01205749,2540.7,2538.0,0.04622693]
[1642982013301,7.4984,2541.6,2539.9,5.922]
[1642982013302,9.88591794,2541.6,2539.9,5.922]
[1642982013493,5.0,2542.3,2539.9,5.922]
[1642982013494,5.43034632,2542.0,2540.8,5.922]
[1642982013694,5.01293987,2542.3,2540.9,0.33543997]
[1642982013897,5.01293987,2542.3,2541.9,5.922]
[1642982013898,1.59865247,2542.3,2541.9,5.922]
[1642982014096,8.87102798,2543.7,2542.2,5.922]
[1642982014294,0.19655,2544.6,2542.9,5.922]
[1642982014295,8.87102798,2544.3,2542.9,5.922]
[1642982014494,4.39607331,2545.4,2543.2,5.922]
[1642982014495,0.04902,2545.2,2543.2,5.922]
[1642982014694,0.04904,2545.3,2544.2,5.922]
[1642982014893,0.04904,2545.3,2543.3,3.88206618]
[1642982014894,0.04905,2545.6,2544.5,5.922]
[1642982015097,0.0033576,2545.7,2544.9,0.01220048]
[1642982015296,0.0318771,2547.4,2545.2,5.922]
[1642982015297,0.0024076,2546.2,2545.2,5.922]
[1642982015531,0.0024076,2546.2,2545.5,0.0125652]
[1642982015532,0.1989576,2546.2,2545.5,0.0125652]
[1642982015737,0.0024076,2546.2,2545.5,0.0125652]
[1642982015932,0.0024076,2546.2,2545.6,0.474]
[1642982016128,1.16554512,2546.0,2545.3,0.35381581]
[1642982016327,1.16554512,2546.0,2545.7,0.35381581]
[1642982016727,6.65,2545.8,2545.7,1.581e-05]
[1642982016933,6.65,2545.8,2544.4,6.36019997]
[1642982016934,7.1,2545.7,2544.9,0.474]
[1642982017135,1.18005101,2544.4,2543.9,0.474]
[1642982017333,7.1,2545.5,2543.9,0.474]
[1642982017334,0.19655,2544.6,2543.9,0.474]
[1642982017534,0.09575,2544.5,2542.8,0.474]
[1642982017731,0.19655,2544.7,2544.1,0.38192594]
[1642982017732,1.24379079,2544.6,2544.1,0.38192594]
[1642982017933,0.1572,2544.9,2544.1,0.38192594]
[1642982018127,6.9184979,2547.7,2544.2,0.474]
[1642982018128,7.2379,2544.6,2544.2,0.474]
[1642982018334,1.33225667,2545.2,2544.2,0.474]
[1642982018539,1.33225667,2545.2,2543.0,1.9664385]
[1642982018540,1.16661228,2544.3,2543.4,0.474]
[1642982018739,1.16661228,2544.3,2542.3,2.16351]
[1642982018740,0.35375,2544.2,2542.8,3.15089059]
[1642982018934,0.65375,2544.2,2542.8,2.67689059]
[1642982019133,1.65375,2544.2,2542.8,2.67689059]
[1642982019394,1.95375,2544.2,2542.8,2.67689059]
[1642982019591,1.30861715,2543.5,2543.0,0.38192594]
[1642982019898,1.95375,2544.2,2543.9,0.31139992]
[1642982019899,1.7572,2544.2,2543.9,0.31139992]
[1642982020095,1.3524653,2543.4,2543.1,2.23122211]
[1642982020295,0.03860881,2543.9,2543.1,2.23122211]
[1642982020296,0.1572,2543.3,2543.1,2.23122211]
[1642982020497,0.474,2544.6,2543.1,2.23122211]
[1642982020498,0.1572,2543.8,2543.1,2.23122211]
[1642982020699,4.7222,2546.1,2543.5,1.33313963]
[1642982020700,0.09087318,2544.0,2543.5,1.33313963]
[1642982020901,0.09087318,2544.0,2542.6,0.07103649]
[1642982020902,0.09087318,2544.0,2539.7,19.58379547]
[1642982020903,5.0,2543.6,2539.7,19.58379547]
[1642982021106,0.08685181,2542.5,2536.4,7.42478305]
[1642982021304,0.08685181,2542.5,2537.1,1.42977785]
[1642982021305,5.0,2539.6,2537.1,1.42977785]
[1642982021500,5.0,2539.6,2535.7,6.35456823]
[1642982021501,0.82344089,2536.7,2534.8,1.3427]
[1642982021701,3.62386112,2539.5,2535.4,1.44098548]
[1642982021702,0.0304,2538.6,2535.4,1.44098548]
[1642982021896,0.0304,2538.6,2534.8,0.18354553]
[1642982021897,1.05661344,2536.5,2534.8,0.18354553]
[1642982022102,1.05661344,2536.5,2533.8,0.1577]
[1642982022103,0.5,2535.5,2534.3,0.05771178]
[1642982022306,0.5,2535.5,2533.8,0.1577]
[1642982022307,0.01941318,2535.3,2533.8,0.1577]
[1642982022505,0.1577,2535.2,2533.8,0.1577]
[1642982022708,1.0,2533.9,2533.8,0.1577]
[1642982022897,1.0,2533.9,2533.8,0.35487]
[1642982023140,2.0,2535.3,2533.8,0.38752861]
[1642982023338,0.206,2533.9,2533.8,0.38752861]
[1642982023541,3.56986112,2536.4,2535.0,1.09130343]
[1642982023745,0.3,2536.4,2535.1,0.19717]
[1642982023942,0.3,2536.4,2535.2,0.1577]
[1642982024138,0.19696,2536.4,2535.1,0.1577]
[1642982024344,0.19696,2536.4,2534.1,0.19717]
[1642982024345,0.1577,2536.3,2534.1,0.19717]
[1642982024541,0.474,2536.2,2534.1,0.19717]
[1642982024739,1.05661344,2536.1,2534.2,0.193096]
[1642982024939,4.32647456,2536.1,2534.3,0.33536997]
[1642982025144,4.95665816,2536.1,2534.4,0.1577]
[1642982025346,4.95665816,2536.1,2534.3,0.13819997]
[1642982025347,0.6317,2536.0,2534.3,0.13819997]
[1642982025543,0.6317,2536.0,2534.3,0.33536997]
[1642982025745,4.28899997,2536.4,2534.4,3.46675263]
[1642982025944,4.28899997,2536.4,2534.5,0.474]
[1642982026142,3.26986112,2536.3,2534.6,0.35487]